bitfinex/quotes_SOLUSD_20250612
["timestamp","ask_amount","ask_price","bid_price","bid_amount"]
[1749754808682,19.29546161,157.73,157.69,19.29546161]
[1749754809011,6.34034998,157.72,157.69,19.29546161]
[1749754809171,6.34034998,157.72,157.7,26.72]
[1749754809495,6.34034998,157.72,157.7,46.01546161]
[1749754809907,6.34034998,157.72,157.71,26.72]
[1749754810208,6.33874239,157.76,157.71,46.01546161]
[1749754810374,19.29546161,157.75,157.71,26.72]
[1749754810886,6.33954608,157.74,157.71,26.72]
[1749754811801,6.33954608,157.74,157.71,46.01546161]
[1749754812172,6.33954608,157.74,157.71,26.72]
[1749754812376,6.33954608,157.74,157.71,46.01546161]
[1749754813194,6.33914421,157.75,157.71,46.01546161]
[1749754813394,25.63460582,157.75,157.71,46.01546161]
[1749754814491,25.63460582,157.75,157.71,26.72]
[1749754816001,25.63460582,157.75,157.71,46.01546161]
[1749754816002,6.33914421,157.75,157.71,46.01546161]
[1749754817101,6.33834062,157.77,157.74,19.29546161]
[1749754817306,6.33834062,157.77,157.75,26.7]
[1749754817612,19.29546161,157.76,157.75,26.7]
[1749754819312,117.8244208,157.76,157.67,1.5102]
[1749754819604,19.29546161,157.71,157.68,26.7]
[1749754819796,19.29546161,157.71,157.69,26.7]
[1749754819998,19.29546161,157.72,157.69,26.7]
[1749754820213,19.29546161,157.72,157.7,26.7]
[1749754821512,6.34034998,157.72,157.7,26.7]
[1749754822815,6.34034998,157.72,157.7,45.99546161]
[1749754823604,22.19002475,157.73,157.7,26.7]
[1749754826182,22.19002475,157.73,157.71,26.7]
[1749754826406,41.48548636,157.73,157.72,26.7]
[1749754827806,99.18522642,157.73,157.65,94.8815]
[1749754828009,19.29546161,157.67,157.63,90.1659]
[1749754828212,19.29546161,157.66,157.62,19.29546161]
[1749754828423,19.29546161,157.68,157.63,45.99546161]
[1749754828604,26.0,157.69,157.64,19.29546161]
[1749754828930,19.29546161,157.68,157.65,26.7]
[1749754829297,19.29546161,157.67,157.65,26.7]
[1749754829810,6.3427629,157.66,157.65,26.7]
[1749754830653,6.3427629,157.66,157.62,19.29546161]
[1749754830825,19.29546161,157.63,157.61,88.5]
[1749754831032,48.19967016,157.66,157.58,19.29546161]
[1749754831219,19.29546161,157.63,157.59,26.7]
[1749754832226,6.34437254,157.62,157.6,26.7]
[1749754832790,6.34412145,157.63,157.6,45.99546161]
[1749754833013,6.34412145,157.63,157.61,19.29546161]
[1749754833517,6.34412145,157.63,157.6,26.7]
[1749754833518,25.63958306,157.63,157.6,26.7]
[1749754834008,41.4995082,157.63,157.6,26.7]
[1749754834924,6.34412145,157.63,157.6,45.99546161]
[1749754835233,6.34412145,157.63,157.6,26.7]
[1749754835400,25.63958306,157.63,157.6,26.7]
[1749754835705,41.4995082,157.63,157.6,26.7]
[1749754835907,6.34412145,157.63,157.6,45.99546161]
[1749754836299,6.34412145,157.63,157.61,19.29546161]
[1749754836493,6.34412145,157.63,157.6,45.99546161]
[1749754836999,6.34412145,157.63,157.6,26.7]
[1749754837209,6.34412145,157.63,157.6,45.99546161]
[1749754838506,6.34356762,157.64,157.6,45.99546161]
[1749754839402,25.63902923,157.64,157.6,45.99546161]
[1749754840227,25.63902923,157.64,157.6,26.7]
[1749754840401,41.49794828,157.64,157.6,26.7]
[1749754841222,6.34356762,157.64,157.63,19.29546161]
[1749754841532,6.3427629,157.66,157.63,45.99546161]
[1749754841703,84.27469555,157.68,157.65,19.29546161]
[1749754841898,84.27469555,157.68,157.67,19.29546161]
[1749754842105,84.27469555,157.68,157.66,26.7]
[1749754842305,25.63782223,157.67,157.66,26.7]
[1749754843609,41.49372379,157.67,157.66,26.7]
[1749754845129,41.49372379,157.67,157.66,26.68]
[1749754847811,26.0,157.64,157.58,1.5713]
[1749754848014,19.29546161,157.62,157.59,26.68]
[1749754848213,19.29546161,157.62,157.6,26.68]
[1749754848418,19.29546161,157.62,157.61,26.68]
[1749754849707,25.63983415,157.62,157.61,26.68]
[1749754850138,25.63983415,157.62,157.58,20.86676161]
[1749754850545,41.5007655,157.62,157.59,26.68]
[1749754850726,41.5007655,157.62,157.55,6.2511]
[1749754850727,19.29546161,157.6,157.55,114.04656161]
[1749754850928,19.29546161,157.61,157.57,19.29546161]
[1749754851130,41.5007655,157.62,157.57,19.29546161]
[1749754852044,19.29546161,157.61,157.56,45.97546161]
[1749754852633,19.29546161,157.61,157.56,19.29546161]
[1749754852813,19.29546161,157.61,157.57,26.68]
[1749754853019,15.86093135,157.62,157.57,26.68]
[1749754853318,6.34517766,157.6,157.57,26.68]
[1749754853948,25.64063927,157.6,157.58,26.68]
[1749754855325,25.64063927,157.6,157.56,19.29546161]
[1749754855521,25.64063927,157.6,157.57,26.68]
[1749754855716,6.34517766,157.6,157.57,26.68]
[1749754855921,22.20389519,157.63,157.59,19.29546161]
[1749754856142,22.20389519,157.63,157.6,45.97546161]
[1749754856143,6.34397005,157.63,157.6,45.97546161]
[1749754856341,51.99575199,157.67,157.6,45.97546161]
[1749754856342,15.85783186,157.66,157.6,28.3014]
[1749754856541,18.18469468,157.66,157.62,19.29546161]
[1749754856734,15.85783186,157.66,157.63,26.68]
[1749754856936,6.34316523,157.65,157.63,26.68]
[1749754857139,22.20059476,157.66,157.63,26.68]
[1749754857450,6.3427629,157.66,157.63,45.97546161]
[1749754859223,22.19842687,157.67,157.63,45.97546161]
[1749754859640,22.19842687,157.67,157.63,26.68]
[1749754859848,22.19842687,157.67,157.63,45.97546161]
[1749754861449,19.29546161,157.65,157.64,26.68]
[1749754861632,19.29546161,157.66,157.64,26.68]
[1749754862142,41.49388848,157.67,157.64,26.68]
[1749754862526,19.29546161,157.66,157.64,26.68]
[1749754862748,22.19842687,157.67,157.64,26.68]
[1749754862749,41.49388848,157.67,157.64,26.68]
[1749754863121,19.29546161,157.66,157.64,26.68]
[1749754863324,25.63862684,157.65,157.64,26.68]
[1749754863558,6.34316523,157.65,157.64,26.68]
[1749754865038,6.34316523,157.65,157.61,19.29546161]
[1749754865357,19.29546161,157.62,157.57,19.29546161]
[1749754865536,19.29546161,157.6,157.58,26.68]
[1749754865739,19.29546161,157.61,157.58,26.68]
[1749754866347,26.0,157.62,157.58,26.68]
[1749754866542,19.29546161,157.63,157.59,19.29546161]
[1749754866754,19.29546161,157.64,157.59,19.29546161]
[1749754867350,6.34397005,157.63,157.59,19.29546161]
[1749754868347,6.34397005,157.63,157.6,19.29546161]
[1749754868553,6.34397005,157.63,157.61,26.68]
[1749754869344,6.34397005,157.63,157.58,19.29546161]
[1749754869345,41.4993568,157.63,157.58,19.29546161]
[1749754869544,41.4993568,157.63,157.59,26.66]
[1749754870063,22.20389519,157.63,157.6,19.29546161]
[1749754871639,22.20389519,157.63,157.59,26.66]
[1749754871863,22.20389519,157.63,157.6,19.29546161]
[1749754872952,22.20389519,157.63,157.59,26.66]
[1749754872953,22.20389519,157.63,157.59,45.95546161]
[1749754873355,41.4993568,157.63,157.59,45.95546161]
[1749754873687,19.29546161,157.6,157.56,109.38536161]
[1749754873842,19.29546161,157.61,157.57,45.95546161]
[1749754874042,19.29546161,157.62,157.57,45.95546161]
[1749754874467,19.29546161,157.62,157.57,26.66]
[1749754874682,19.29546161,157.6,157.56,109.38536161]
[1749754874844,19.29546161,157.59,157.55,88.5]
[1749754875050,26.0,157.62,157.56,26.66]
[1749754875051,19.29546161,157.57,157.56,26.66]
[1749754875273,6.34638573,157.57,157.53,19.29546161]
[1749754875479,6.34638573,157.57,157.54,45.95546161]
[1749754876380,6.34638573,157.57,157.52,90.1379]
[1749754876584,19.29546161,157.56,157.52,109.43336161]
[1749754876787,41.50781167,157.57,157.53,26.66]
[1749754876948,41.50781167,157.57,157.53,45.95546161]
[1749754877155,41.50781167,157.57,157.53,19.29546161]
[1749754877459,41.50781167,157.57,157.54,26.66]
[1749754878570,19.29546161,157.56,157.51,6.4332]
[1749754878750,19.29546161,157.55,157.52,26.66]
[1749754879169,6.34759426,157.54,157.52,26.66]
[1749754879555,25.64305587,157.54,157.5,19.29546161]
[1749754879852,6.34759426,157.54,157.51,26.66]
[1749754880052,6.34759426,157.54,157.48,1.598]
[1749754880264,19.29546161,157.52,157.47,6.6634]
[1749754880461,22.21657991,157.54,157.47,6.6634]
[1749754880462,19.29546161,157.51,157.47,19.29546161]
[1749754880671,19.29546161,157.52,157.48,26.66]
[1749754880874,19.29546161,157.52,157.48,45.95546161]
[1749754881185,22.21657991,157.54,157.48,45.95546161]
[1749754881470,22.21657991,157.54,157.45,88.5]
[1749754881471,6.34880325,157.51,157.45,88.5]
[1749754881674,6.34880325,157.51,157.47,19.29546161]
[1749754882351,6.34880325,157.51,157.48,26.66]
[1749754882894,6.34880325,157.51,157.49,26.66]
[1749754883458,25.64386181,157.52,157.49,26.66]
[1749754883658,41.51486231,157.52,157.49,26.66]
[1749754884062,22.2194007,157.52,157.49,26.66]
[1749754884479,41.51486231,157.52,157.49,26.66]
[1749754884778,22.2194007,157.52,157.44,53.55686161]
[1749754885075,22.2194007,157.52,157.48,19.29546161]
[1749754885378,41.51486231,157.52,157.49,26.66]
[1749754886382,6.3484002,157.52,157.49,26.66]
[1749754886682,6.3484002,157.52,157.5,19.29546161]
[1749754887187,6.3484002,157.52,157.49,45.95546161]
[1749754887355,6.3484002,157.52,157.45,0.14216157]
[1749754887555,19.29546161,157.51,157.47,19.29546161]
[1749754887758,19.29546161,157.5,157.45,19.29546161]
[1749754887974,19.29546161,157.5,157.46,26.66]
[1749754888186,19.29546161,157.5,157.46,45.95546161]
[1749754888955,19.29546161,157.5,157.46,19.29546161]
[1749754889158,19.29546161,157.49,157.44,27.55686161]
[1749754889353,19.29546161,157.49,157.45,26.66]
[1749754889558,6.3500127,157.48,157.45,26.66]
[1749754889788,6.3500127,157.48,157.45,45.95546161]
[1749754891385,6.34954424,157.5,157.47,19.29546161]
[1749754891559,22.22180308,157.51,157.48,26.66]
[1749754891959,41.51726469,157.51,157.47,19.29546161]
[1749754892172,41.51726469,157.51,157.48,26.66]
[1749754892682,19.29546161,157.5,157.48,26.66]
[1749754892861,22.22180308,157.51,157.48,26.66]
[1749754893191,19.29546161,157.5,157.48,26.66]
[1749754893881,6.34960949,157.49,157.48,26.66]
[1749754899988,6.34960949,157.49,157.44,90.098]
[1749754899989,41.51909484,157.49,157.44,90.098]
[1749754900193,19.29546161,157.48,157.45,26.66]
[1749754900363,19.29546161,157.48,157.44,20.89346161]
[1749754900567,19.29546161,157.48,157.45,26.66]
[1749754900768,19.29546161,157.46,157.43,8.33333333]
[1749754900970,19.29546161,157.44,157.43,8.33333333]
[1749754901194,19.29546161,157.44,157.43,34.99333333]
[1749754901375,26.0,157.46,157.43,34.99333333]
[1749754901376,19.29546161,157.45,157.43,34.99333333]
[1749754901577,19.29546161,157.45,157.44,26.66]
[1749754901790,19.29546161,157.45,157.43,8.33333333]
[1749754902001,25.64708762,157.44,157.43,8.33333333]
[1749754902381,25.64708762,157.44,157.43,34.99333333]
[1749754902881,70.43889805,157.44,157.43,8.33333333]
[1749754903105,91.35555966,157.44,157.43,8.33333333]
[1749754903310,65.35555966,157.44,157.43,8.33333333]
[1749754903612,18.64964886,157.4,157.32,20.85286161]
[1749754903910,19.29546161,157.39,157.34,19.29546161]
[1749754904083,6.35364381,157.39,157.35,19.29546161]
[1749754904509,25.64910542,157.39,157.34,19.29546161]
[1749754904916,25.64910542,157.39,157.32,1.5574]
[1749754905210,19.29546161,157.38,157.32,1.5574]
[1749754905411,19.29546161,157.38,157.33,26.66]
[1749754905611,22.23775334,157.39,157.35,19.29546161]
[1749754905910,41.53321495,157.39,157.35,19.29546161]
[1749754906295,19.29546161,157.38,157.33,45.95546161]
[1749754906513,19.29546161,157.36,157.33,26.66]
[1749754906880,19.29546161,157.37,157.33,26.66]
[1749754907602,19.29546161,157.35,157.34,26.66]
[1749754908009,19.29546161,157.35,157.29,20.85716161]
[1749754908308,25.6511245,157.34,157.3,45.95546161]
[1749754908699,6.35566289,157.34,157.3,45.95546161]
[1749754909116,6.35566289,157.34,157.31,19.29546161]
[1749754909306,6.35566289,157.34,157.32,19.29546161]
[1749754909788,6.35566289,157.34,157.3,26.66]
[1749754909789,6.3548551,157.36,157.33,19.29546161]
[1749754909988,6.3548551,157.36,157.34,26.68]
[1749754910399,6.35445129,157.37,157.34,26.68]
[1749754910595,25.6499129,157.37,157.34,26.68]
[1749754910792,6.35445129,157.37,157.34,26.68]
[1749754911598,25.6499129,157.37,157.34,26.68]
[1749754913103,6.35445129,157.37,157.35,19.29546161]
[1749754913297,6.35364381,157.39,157.36,19.29546161]
[1749754913506,6.35364381,157.39,157.37,45.97546161]
[1749754913704,6.35364381,157.39,157.38,26.66]
[1749754914508,6.35324015,157.4,157.38,26.66]
[1749754915730,25.64870176,157.4,157.38,26.66]
[1749754916616,25.64910542,157.39,157.38,26.66]
[1749754918424,67.53321495,157.39,157.37,26.66]
[1749754918629,41.53462795,157.38,157.32,25.50966161]
[1749754918806,19.29546161,157.36,157.33,26.66]
[1749754919006,19.29546161,157.37,157.34,26.66]
[1749754920030,19.29546161,157.36,157.34,26.66]
[1749754920323,19.29546161,157.37,157.34,26.66]
[1749754920528,6.3548551,157.36,157.35,26.66]
[1749754921225,25.65031671,157.36,157.35,26.66]
[1749754921432,25.65031671,157.36,157.32,25.50966161]
[1749754921732,41.53745448,157.36,157.33,26.66]
[1749754922027,19.29546161,157.34,157.3,19.29546161]
[1749754922244,19.29546161,157.33,157.29,20.85716161]
[1749754922530,32.3548551,157.36,157.32,19.29546161]
[1749754922832,32.3548551,157.36,157.34,19.29546161]
[1749754923332,32.3548551,157.36,157.33,45.95546161]
[1749754923719,51.65031671,157.36,157.33,26.66]
[1749754924749,19.29546161,157.34,157.3,19.29546161]
[1749754924914,19.29546161,157.34,157.31,26.66]
[1749754925115,19.29546161,157.35,157.31,26.66]
[1749754925328,19.29546161,157.35,157.3,19.29546161]
[1749754925540,19.29546161,157.35,157.31,26.66]
[1749754925926,6.35566289,157.34,157.31,26.66]
[1749754926241,6.35566289,157.34,157.32,19.29546161]
[1749754926544,32.35404752,157.38,157.33,19.29546161]
[1749754926708,32.35404752,157.38,157.35,19.29546161]
[1749754926709,6.35404752,157.38,157.35,19.29546161]
[1749754926911,6.35404752,157.38,157.36,19.29546161]
[1749754927219,6.35404752,157.38,157.37,26.66]
[1749754927637,6.35404752,157.38,157.37,45.95546161]
[1749754928144,6.35324015,157.4,157.37,26.66]
[1749754928644,6.35324015,157.4,157.37,45.95546161]
[1749754929346,6.35324015,157.4,157.37,26.66]
[1749754929716,6.35324015,157.4,157.37,45.95546161]
[1749754931036,6.35324015,157.4,157.37,26.66]
[1749754933433,6.35324015,157.4,157.38,19.29546161]
[1749754933839,6.35324015,157.4,157.37,45.95546161]
[1749754935223,6.35324015,157.4,157.38,19.29546161]
[1749754935421,6.35324015,157.4,157.39,19.29546161]
[1749754937823,6.35324015,157.4,157.38,19.29546161]
[1749754938538,12.35300989,157.41,157.38,19.29546161]
[1749754939124,6.0,157.41,157.39,19.29546161]
[1749754939440,6.35254999,157.42,157.4,45.95546161]
[1749754939640,6.35254999,157.42,157.41,26.66]
[1749754940022,19.29546161,157.45,157.41,26.66]
[1749754940248,25.64668422,157.45,157.41,26.66]
[1749754940454,19.29546161,157.43,157.41,26.66]
[1749754941248,41.52897704,157.42,157.37,19.29546161]
[1749754941461,19.29546161,157.41,157.38,26.66]
[1749754941642,41.52897704,157.42,157.38,26.66]
[1749754941939,41.52897704,157.42,157.4,19.29546161]
[1749754941940,6.35243298,157.42,157.4,19.29546161]
[1749754942158,6.35243298,157.42,157.36,19.29546161]
[1749754942159,6.35243298,157.42,157.41,45.95546161]
[1749754942326,15.87609226,157.47,157.41,45.95546161]
[1749754942525,15.87609226,157.47,157.43,19.29546161]
[1749754942751,6.35081925,157.46,157.44,26.66]
[1749754943163,22.22650821,157.47,157.44,45.95546161]
[1749754943721,41.52196982,157.47,157.44,26.66]
[1749754944126,22.22650821,157.47,157.44,26.66]
[1749754944660,41.52196982,157.47,157.44,26.66]
[1749754944833,22.22650821,157.47,157.44,26.66]
[1749754945429,22.22650821,157.47,157.44,45.95546161]
[1749754946364,51.29546161,157.48,157.46,19.29546161]
[1749754946365,12.35018,157.48,157.46,19.29546161]
[1749754946537,6.35018,157.48,157.47,45.93546161]
[1749754947238,6.34880325,157.51,157.47,45.93546161]
[1749754947551,6.34880325,157.51,157.49,19.29546161]
[1749754947851,6.34880325,157.51,157.5,26.64]
[1749754948050,8.69521882,157.51,157.5,45.93546161]
[1749754948258,8.69541603,157.51,157.5,45.93546161]
[1749754948562,8.69543682,157.51,157.5,26.64]
[1749754948737,8.69534527,157.51,157.5,26.64]
[1749754949059,6.34880325,157.51,157.5,26.64]
[1749754949378,6.3479972,157.53,157.5,45.93546161]
[1749754949534,6.3479972,157.53,157.51,19.29546161]
[1749754949741,6.3479972,157.53,157.52,45.93546161]
[1749754950934,6.3479972,157.53,157.52,26.64]
[1749754951665,6.34759426,157.54,157.52,45.93546161]
[1749754952562,6.34638573,157.57,157.53,19.29546161]
[1749754952745,6.34638573,157.57,157.55,19.29546161]
[1749754952941,6.34638573,157.57,157.49,26.0]
[1749754952942,6.34638573,157.57,157.56,45.93546161]
[1749754953242,6.34638573,157.57,157.56,26.64]
[1749754953445,6.34477507,157.61,157.56,45.93546161]
[1749754953640,6.34477507,157.61,157.57,19.29546161]
[1749754953841,19.29546161,157.6,157.58,26.62]
[1749754954042,19.29546161,157.59,157.58,26.62]
[1749754954444,19.29546161,157.59,157.5,1.6424]
[1749754954652,19.29546161,157.54,157.49,19.29546161]
[1749754954853,19.29546161,157.54,157.5,26.62]
[1749754955039,45.29546161,157.56,157.51,19.29546161]
[1749754955244,45.29546161,157.56,157.52,26.62]
[1749754955552,32.34682834,157.56,157.52,45.91546161]
[1749754955750,51.64228995,157.56,157.52,26.62]
[1749754955963,19.29546161,157.57,157.54,3.98451253]
[1749754956267,45.29546161,157.58,157.55,30.60451253]
[1749754956966,45.29546161,157.59,157.56,3.98451253]
[1749754957167,45.29546161,157.59,157.57,26.62]
[1749754957338,19.29546161,157.58,157.57,26.62]
[1749754957847,25.6414446,157.58,157.57,26.62]
[1749754958244,27.98734672,157.58,157.57,26.62]
[1749754958573,27.98739365,157.58,157.57,26.62]
[1749754958868,27.98730095,157.58,157.57,26.62]
[1749754959043,27.98687368,157.58,157.57,26.62]
[1749754959245,27.98687605,157.58,157.57,26.62]
[1749754959464,27.9867859,157.58,157.57,26.62]
[1749754959975,8.69141586,157.58,157.57,26.62]
[1749754960152,8.69134249,157.58,157.57,26.62]
[1749754960357,8.69135683,157.58,157.57,26.62]
[1749754960552,27.98675041,157.58,157.57,26.62]
[1749754960872,25.6414446,157.58,157.57,26.62]
[1749754961342,8.69110038,157.58,157.57,26.62]
[1749754961543,6.34598299,157.58,157.57,26.62]
[1749754961965,8.69109286,157.58,157.57,26.62]
[1749754962345,8.69125349,157.58,157.57,26.62]
[1749754962546,8.69134804,157.58,157.57,26.62]
[1749754962866,2.34536505,157.58,157.57,26.62]
[1749754963064,2.34557399,157.58,157.57,26.62]
[1749754963379,2.34557396,157.58,157.57,26.62]
[1749754963557,2.34566737,157.58,157.57,26.62]
[1749754963885,26.0,157.59,157.57,26.62]
[1749754964046,2.34603476,157.58,157.57,49.89997414]
[1749754964369,2.34603486,157.58,157.57,49.89997414]
[1749754964549,31.33371064,157.61,157.57,49.89997414]
[1749754964750,2.34603661,157.6,157.58,3.98451253]
[1749754964950,5.33371064,157.61,157.59,26.62]
[1749754965154,2.34594318,157.6,157.59,26.62]
[1749754965450,2.34604713,157.6,157.59,26.62]
[1749754965644,2.34606824,157.6,157.59,26.62]
[1749754965840,2.34606824,157.6,157.59,45.91546161]
[1749754966142,2.34606824,157.6,157.59,49.89997414]
[1749754966345,2.34613941,157.6,157.59,49.89997414]
[1749754966547,2.34686153,157.6,157.59,49.89997414]
[1749754966843,5.98,157.62,157.59,49.89997414]
[1749754966844,12.32442634,157.62,157.59,49.89997414]
[1749754967059,2.34677274,157.61,157.59,49.89997414]
[1749754967247,2.34679212,157.6,157.59,49.89997414]
[1749754967448,12.32442634,157.62,157.59,49.89997414]
[1749754967859,2.34672344,157.61,157.6,3.98451253]
[1749754968065,2.34670371,157.61,157.6,3.98451253]
[1749754968458,12.32442634,157.62,157.6,3.98451253]
[1749754968665,12.32442634,157.62,157.61,26.6]
[1749754968868,5.98,157.62,157.61,45.89546161]
[1749754969084,2.3469915,157.62,157.61,49.87997414]
[1749754969257,2.34697273,157.62,157.61,49.87997414]
[1749754969463,5.98,157.69,157.62,3.98451253]
[1749754969654,5.98,157.69,157.65,19.29546161]
[1749754969655,8.68938244,157.68,157.65,19.29546161]
[1749754969979,2.34757029,157.67,157.66,26.6]
[1749754970158,2.34763968,157.67,157.66,45.89546161]
[1749754970359,6.34195839,157.68,157.66,45.89546161]
[1749754970574,2.34777959,157.67,157.66,30.58451253]
[1749754970876,2.34805754,157.67,157.66,49.87997414]
[1749754971081,45.29546161,157.72,157.67,3.98451253]
[1749754971252,45.29546161,157.72,157.68,26.6]
[1749754971454,19.29546161,157.72,157.68,30.58451253]
[1749754971765,6.34075201,157.71,157.68,30.58451253]
[1749754972478,6.34075201,157.71,157.68,49.87997414]
[1749754972883,6.34075201,157.71,157.68,30.58451253]
[1749754973080,6.34075201,157.71,157.68,49.87997414]
[1749754973879,6.34075201,157.71,157.68,45.89546161]
[1749754974066,6.34075201,157.71,157.68,49.87997414]
[1749754974457,6.34075201,157.71,157.7,19.29546161]
[1749754974659,6.33914421,157.75,157.7,49.87997414]
[1749754974983,22.18700474,157.75,157.72,19.29546161]
[1749754975158,22.18700474,157.75,157.73,30.58451253]
[1749754975354,6.33914421,157.75,157.73,30.58451253]
[1749754975586,6.33914421,157.75,157.73,49.87997414]
[1749754976784,6.33914421,157.75,157.73,30.58451253]
[1749754978162,25.63460582,157.75,157.73,26.6]
[1749754978475,25.63460582,157.75,157.73,30.58451253]
[1749754978476,6.33914421,157.75,157.73,30.58451253]
[1749754978785,6.33914421,157.75,157.73,26.6]
[1749754978971,6.33914421,157.75,157.73,30.58451253]
[1749754979785,6.33914421,157.75,157.73,49.87997414]
[1749754979973,6.33914421,157.75,157.74,23.27997414]
[1749754981484,6.3379389,157.78,157.74,23.27997414]
[1749754981684,6.3379389,157.78,157.77,3.98451253]
[1749754981982,22.18221678,157.79,157.77,30.56451253]
[1749754982287,22.18221678,157.79,157.78,3.98451253]
[1749754984279,15.84467955,157.79,157.78,3.98451253]
[1749754985861,15.84467955,157.79,157.77,26.58]
[1749754986062,45.29546161,157.78,157.74,3.98451253]
[1749754986261,6.33954608,157.74,157.73,3.98451253]
[1749754986499,6.33954608,157.74,157.72,23.27997414]
[1749754986687,6.33954608,157.74,157.73,30.54451253]
[1749754986871,6.33954608,157.74,157.72,3.98451253]
[1749754987068,6.33954608,157.74,157.73,26.56]
[1749754987579,6.33954608,157.74,157.73,30.54451253]
[1749754987887,6.33954608,157.74,157.73,26.56]
[1749754988183,6.33954608,157.74,157.72,3.98451253]
[1749754988385,6.33954608,157.74,157.7,19.29546161]
[1749754988386,6.33954608,157.74,157.73,30.54451253]
[1749754992595,22.18714949,157.75,157.74,3.98451253]
[1749754993166,6.33834062,157.77,157.76,3.98451253]
[1749754993463,6.33834062,157.77,157.76,49.83997414]
[1749754993895,6.33834062,157.77,157.76,30.54451253]
[1749754994095,6.33834062,157.77,157.76,26.56]
[1749754994262,25.63380223,157.77,157.76,26.56]
[1749754995089,25.63380223,157.77,157.75,3.98451253]
[1749754995294,25.63380223,157.77,157.76,26.56]
[1749754996178,41.47965378,157.77,157.72,3.98451253]
[1749754996391,19.29546161,157.74,157.73,30.54451253]
[1749754996896,25.63500769,157.74,157.73,3.98451253]
[1749754997077,25.63500769,157.74,157.73,26.56]
[1749754997288,25.63500769,157.74,157.71,3.98451253]
[1749754997289,41.48387291,157.74,157.71,3.98451253]
[1749754997473,19.29546161,157.73,157.72,26.56]
[1749754998589,25.63540962,157.73,157.72,26.56]
[1749754998798,6.33994801,157.73,157.72,3.98451253]
[1749754998981,6.33994801,157.73,157.72,26.56]
[1749754999191,6.33994801,157.73,157.72,30.54451253]
[1749755000395,19.29546161,157.73,157.71,3.98451253]
[1749755000702,19.29546161,157.74,157.72,30.54451253]
[1749755000889,22.18419217,157.77,157.73,30.54451253]
[1749755001087,41.47965378,157.77,157.74,3.98451253]
[1749755001287,22.18419217,157.77,157.75,26.56]
[1749755001507,22.18419217,157.77,157.76,3.98451253]
[1749755001706,6.33834062,157.77,157.76,23.27997414]
[1749755002610,15.84383818,157.8,157.79,3.98451253]
[1749755002900,15.84383818,157.8,157.79,49.83997414]
[1749755003205,6.33673404,157.81,157.8,3.98451253]
[1749755003407,6.33673404,157.81,157.8,23.27997414]
[1749755003614,23.00304064,157.82,157.81,3.98451253]
[1749755003783,23.00304064,157.82,157.81,49.81997414]
[1749755006207,23.00304064,157.82,157.81,30.52451253]
[1749755007181,23.00304064,157.82,157.81,49.81997414]
[1749755007585,23.00304064,157.82,157.81,30.52451253]
[1749755008293,23.00304064,157.82,157.81,49.81997414]
[1749755008499,23.00304064,157.82,157.81,30.52451253]
[1749755010006,23.00304064,157.82,157.81,49.81997414]
[1749755010851,16.66666667,157.82,157.81,49.81997414]
[1749755011814,16.66666667,157.82,157.81,68.61178457]
[1749755012615,16.66666667,157.82,157.81,76.41768457]
[1749755013823,6.33272117,157.91,157.87,23.27997414]
[1749755014001,6.33272117,157.91,157.88,45.83546161]
[1749755014200,6.33272117,157.91,157.89,23.27997414]
[1749755014398,6.33272117,157.91,157.9,30.52451253]
[1749755014826,6.33272117,157.91,157.9,26.54]
[1749755015130,6.33272117,157.91,157.9,30.52451253]
[1749755015516,25.62818278,157.91,157.9,30.52451253]
[1749755015718,25.62818278,157.91,157.9,26.54]
[1749755016132,51.62818278,157.91,157.9,26.54]
[1749755017319,32.33272117,157.91,157.9,26.54]
[1749755017553,61.12609886,157.93,157.9,30.52451253]
[1749755017946,15.83063725,157.93,157.9,30.52451253]
[1749755018148,15.83063725,157.93,157.91,3.98451253]
[1749755018439,15.83063725,157.93,157.9,26.54]
[1749755018440,15.83063725,157.93,157.92,30.50451253]
[1749755018650,18.18420709,157.93,157.92,30.50451253]
[1749755018825,15.83063725,157.93,157.92,30.50451253]
[1749755019026,18.18401904,157.93,157.92,30.50451253]
[1749755019225,2.35363185,157.93,157.92,30.50451253]
[1749755019441,32.33111744,157.95,157.93,3.98451253]
[1749755019643,32.33111744,157.95,157.94,26.52]
[1749755019825,53.98033583,157.95,157.94,26.52]
[1749755020027,34.68487404,157.95,157.94,26.52]
[1749755020719,53.98050273,157.95,157.94,26.52]
[1749755020923,53.98050277,157.95,157.94,26.52]
[1749755021149,53.98050419,157.95,157.94,26.52]
[1749755021352,34.68499806,157.95,157.94,26.52]